bitfinex/quotes_SOLUSD_20260102
["timestamp","ask_amount","ask_price","bid_price","bid_amount"]
[1767378958595,3.80600535,131.1,131.06,0.6779037]
[1767378958796,3.80600535,131.09,131.06,0.6779037]
[1767378959497,3.80600535,131.1,131.06,0.6779037]
[1767378959706,3.80600535,131.09,131.06,0.6779037]
[1767378959907,7.62718328,131.11,131.06,0.6779037]
[1767378960205,7.62601998,131.13,131.07,0.67843487]
[1767378960407,3.80600535,131.1,131.07,0.67843487]
[1767378960798,3.80600535,131.09,131.07,0.67843487]
[1767378961019,3.80600535,131.1,131.07,0.67843487]
[1767378961334,3.80600535,131.11,131.07,0.67843487]
[1767378961897,3.80600535,131.1,131.08,0.67843487]
[1767378963017,3.80600535,131.09,131.05,0.67843487]
[1767378963219,3.80600535,131.1,131.06,0.67843487]
[1767378963426,26.68699961,131.15,131.06,0.67843487]
[1767378963616,3.80600535,131.1,131.07,8.30784008]
[1767378964591,3.80600535,131.1,131.07,7.62940521]
[1767378964895,3.80600535,131.11,131.08,0.67843487]
[1767378965831,7.62667518,131.12,131.08,0.67843487]
[1767378966129,3.80600535,131.11,131.08,0.67843487]
[1767378966429,3.80600535,131.11,131.07,7.62940521]
[1767378966625,3.80600535,131.11,131.08,0.67843487]
[1767378967212,3.80600535,131.1,131.08,0.67843487]
[1767378967612,19.06446233,131.14,131.08,0.67843487]
[1767378967613,7.62586996,131.14,131.08,0.67843487]
[1767378967814,3.80600535,131.13,131.08,0.67843487]
[1767378968135,3.80600535,131.14,131.09,0.67843487]
[1767378968996,3.80600535,131.12,131.1,7.62776506]
[1767378969197,3.80600535,131.12,131.09,8.3065676]
[1767378969428,26.68548899,131.16,131.09,0.67843487]
[1767378969630,3.80600535,131.11,131.09,0.67843487]
[1767378969831,3.80600535,131.1,131.07,21.54933325]
[1767378970012,3.80600535,131.09,131.07,14.59843487]
[1767378970328,3.80600535,131.08,131.06,8.30824541]
[1767378970514,3.80600535,131.09,131.06,8.30824541]
[1767378970714,6.39794976,131.15,131.06,8.30824541]
[1767378970922,3.80600535,131.09,131.06,8.30824541]
[1767378972134,3.80600535,131.09,131.06,0.67843487]
[1767378972319,3.80600535,131.08,131.06,0.67843487]
[1767378972513,3.80600535,131.08,131.05,0.67843487]
[1767378973315,3.80600535,131.08,131.05,8.30911016]
[1767378974201,3.80600535,131.08,131.06,0.67843487]
[1767378975812,3.80600535,131.1,131.07,0.67843487]
[1767378976405,7.62660158,131.12,131.07,0.67843487]
[1767378976406,3.80600535,131.09,131.07,0.67843487]
[1767378976629,2.44220582,131.09,131.07,0.67843487]
[1767378976829,2.44220582,131.11,131.07,0.67843487]
[1767378977036,2.44220582,131.11,131.07,8.30767471]
[1767378977536,2.44220582,131.1,131.07,8.30767471]
[1767378978515,2.44220582,131.1,131.07,0.67843487]
[1767378979014,7.62735753,131.11,131.07,0.67843487]
[1767378979441,2.44220582,131.1,131.07,0.67843487]
[1767378979932,7.62685945,131.12,131.08,0.67843487]
[1767378980114,2.44220582,131.1,131.08,0.67843487]
[1767378981638,2.44220582,131.1,131.07,0.67843487]
[1767378981847,2.44220582,131.09,131.05,8.30887709]
[1767378982029,2.44220582,131.09,131.06,0.67843487]
[1767378983039,2.44220582,131.09,131.06,8.30851852]
[1767378985318,19.0673679,131.12,131.07,0.67843487]
[1767378985526,2.44220582,131.1,131.07,0.67843487]
[1767378985933,2.44220582,131.11,131.08,0.67843487]
[1767378986736,40.61106993,131.13,131.08,0.67843487]
[1767378986939,2.44220582,131.11,131.08,0.67843487]
[1767378987240,5.13262514,131.1,131.08,0.67843487]
[1767378987446,7.57483096,131.1,131.07,8.29118957]
[1767378987617,2.44220582,131.1,131.07,8.29118957]
[1767378988032,7.62783229,131.1,131.06,0.66172425]
[1767378988233,2.44220582,131.08,131.05,0.66172425]
[1767378988436,2.44220582,131.08,131.05,8.29232119]
[1767378988833,2.44220582,131.09,131.07,0.66172425]
[1767378989032,2.44220582,131.1,131.07,0.66172425]
[1767378989637,5.13337696,131.09,131.07,0.66172425]
[1767378989837,7.57558278,131.09,131.05,8.32251064]
[1767378990148,7.57596891,131.08,131.05,0.6920577]
[1767378990447,2.44220582,131.08,131.05,0.6920577]
[1767378991250,2.44220582,131.06,131.03,0.6920577]
[1767378991547,2.44220582,131.05,131.03,0.6920577]
[1767378991745,2.44220582,131.04,131.01,21.55272779]
[1767378991937,2.44220582,131.04,131.01,22.24478549]
[1767378992142,2.44220582,131.04,131.02,8.32440994]
[1767378992354,2.44220582,131.04,131.02,0.6920577]
[1767378992532,2.44220582,131.04,131.02,8.32427511]
[1767378992936,2.44220582,131.03,130.98,19.61423401]
[1767378993144,2.44220582,131.03,130.95,17.64092213]
[1767378993145,2.44220582,130.99,130.95,17.64092213]
[1767378993348,2.44220582,130.96,130.94,3.98407371]
[1767378993534,2.44220582,130.96,130.92,19.19503187]
[1767378993850,1.71720582,130.96,130.93,13.92]
[1767378994054,2.44220582,130.97,130.93,13.92]
[1767378994251,3.12758308,130.97,130.92,21.63723769]
[1767378994432,0.68537726,130.99,130.92,33.11503187]
[1767378994755,2.44220582,130.96,130.92,33.11503187]
[1767378994954,0.68537726,130.98,130.92,33.11503187]
[1767378994955,2.44220582,130.97,130.92,35.55723769]
[1767378995160,2.44220582,130.97,130.92,35.05723769]
[1767378995461,2.44220582,130.97,130.93,0.6920577]
[1767378995754,3.12758308,130.98,130.94,8.32914338]
[1767378996045,3.12758308,130.98,130.94,27.4218576]
[1767378996633,2.44220582,130.98,130.95,0.6920577]
[1767378997744,2.44220582,130.98,130.96,7.63591936]
[1767378998240,3.12758308,130.99,130.96,7.63591936]
[1767378998954,0.68537726,131.05,130.97,0.6920577]
[1767378999156,0.68537726,131.05,131.01,2.44220582]
[1767378999359,0.68537726,131.05,131.01,13.94]
[1767378999537,0.68537726,131.05,131.01,16.38220582]
[1767378999737,0.68537726,131.05,131.01,17.07426352]
[1767378999956,0.68537726,131.05,131.02,7.63242253]
[1767379000363,0.68537726,131.05,131.02,10.07462835]
[1767379000749,2.44220582,131.07,131.02,10.07462835]
[1767379000750,0.68537726,131.06,131.02,10.76668605]
[1767379001050,0.68537726,131.06,131.03,2.44220582]
[1767379001254,3.12758308,131.06,131.02,8.32448023]
[1767379001763,3.12758308,131.06,131.02,10.76668605]
[1767379002961,3.12758308,131.06,131.02,7.63242253]
[1767379003159,3.12758308,131.04,131.0,8.32512175]
[1767379003751,3.12758308,131.04,131.01,7.63295131]
[1767379003953,0.68537726,131.04,131.01,7.63295131]
[1767379006565,0.68537726,131.04,131.01,10.07515713]
[1767379006872,0.68537726,131.04,131.0,10.07567361]
[1767379007259,0.68537726,131.04,131.0,8.32552549]
[1767379007446,0.68537726,131.04,131.0,10.76773131]
[1767379007649,3.12758308,131.02,130.98,8.32631964]
[1767379007974,2.44220582,131.0,130.97,8.32718905]
[1767379008667,3.12758308,131.0,130.97,8.32718905]
[1767379008884,0.68537726,130.99,130.96,7.63565641]
[1767379009960,0.68537726,130.99,130.97,7.635323]
[1767379010868,0.68537726,130.99,130.96,7.63591936]
[1767379012479,3.12758308,130.99,130.96,7.63591936]
[1767379012670,3.12758308,130.99,130.95,8.32829876]
[1767379013577,0.68537726,130.99,130.95,10.77050458]
[1767379015060,0.68537726,131.01,130.96,3.13426352]
[1767379015254,3.12758308,131.01,130.97,0.6920577]
[1767379015950,0.68537726,131.0,130.97,0.6920577]
[1767379017082,0.68537726,131.0,130.97,8.32706972]
[1767379017580,0.68537726,131.02,130.98,3.13426352]
[1767379017750,0.68537726,131.02,130.98,0.6920577]
[1767379017951,0.68537726,131.02,130.98,3.13426352]
[1767379018151,0.68537726,131.03,130.99,3.13426352]
[1767379018359,0.68537726,131.05,131.0,3.13426352]
[1767379018653,0.68537726,131.05,131.01,3.13426352]
[1767379018969,3.12758308,131.05,131.0,17.07426352]
[1767379019175,3.12758308,131.05,131.01,7.63300511]
[1767379020282,0.68537726,131.05,131.01,8.35197073]
[1767379020677,0.68537726,131.05,131.01,10.79417655]
[1767379020983,0.68537726,131.05,131.01,8.35197073]
[1767379021292,0.68906007,131.02,130.98,8.35316325]
[1767379021989,0.68906007,131.02,130.98,10.79536907]
[1767379022491,0.68906007,131.02,130.98,29.88225256]
[1767379022660,3.13126589,131.04,130.99,3.16117144]
[1767379022864,0.68906007,131.04,131.0,3.16117144]
[1767379023075,3.13126589,131.06,131.01,3.16117144]
[1767379023276,0.68906007,131.06,131.02,0.71896562]
[1767379023469,0.68906007,131.06,131.03,2.44220582]
[1767379023788,0.68906007,131.06,131.02,0.71896562]
[1767379023789,0.68906007,131.06,131.02,3.16117144]
[1767379024778,0.68906007,131.06,131.02,10.79304545]
[1767379025273,0.68906007,131.07,131.03,0.71896562]
[1767379025678,0.68906007,131.07,131.03,3.16117144]
[1767379025878,7.62859531,131.09,131.05,3.16117144]
[1767379025879,0.68906007,131.09,131.05,3.16117144]
[1767379026873,0.68906007,131.09,131.05,10.79144164]
[1767379027865,0.68906007,131.11,131.07,0.71896562]
[1767379028167,0.68906007,131.11,131.05,7.6302702]
[1767379028168,0.68906007,131.1,131.05,27.4259241]
[1767379028367,0.68906007,131.1,131.06,3.16117144]
[1767379028567,5.60578666,131.11,131.07,0.71896562]
[1767379028769,0.68906007,131.11,131.07,0.71896562]
[1767379028963,6.29484673,131.11,131.07,8.34818923]
[1767379029364,6.29484673,131.11,131.06,5.60578666]
[1767379029365,0.68906007,131.09,131.06,7.62984543]
[1767379029563,0.68906007,131.09,131.05,0.71896562]
[1767379029764,0.68906007,131.09,131.05,13.95524751]
[1767379029965,0.68906007,131.1,131.06,13.9548353]
[1767379030263,0.68906007,131.1,131.07,13.23527387]
[1767379030471,0.68906007,131.12,131.07,13.92500471]
[1767379032893,8.31478062,131.14,131.08,0.71896562]
[1767379033194,0.68906007,131.14,131.1,13.95215452]
[1767379034787,14.80906007,131.18,131.13,0.71896562]
[1767379034962,6.49484673,131.18,131.13,6.32475228]
[1767379035167,6.49484673,131.18,131.13,13.95044196]
[1767379036292,0.88906007,131.18,131.14,0.71896562]
[1767379036490,0.2,131.18,131.15,0.71896562]
[1767379037081,0.2,131.18,131.16,0.71896562]
[1767379037275,0.2,131.18,131.16,8.34278978]
[1767379037995,0.2,131.18,131.16,13.94857644]
[1767379038190,1e-08,131.18,131.16,13.94857644]
[1767379038588,1e-08,131.18,131.16,17.43852878]
[1767379040390,1e-08,131.18,131.17,9.81470462]
[1767379040582,1e-08,131.18,131.17,9.78552033]
[1767379040783,1e-08,131.18,131.17,0.68978133]
[1767379041091,1e-08,131.18,131.16,7.62382416]
[1767379041272,1e-08,131.18,131.16,16.71956316]
[1767379041592,1e-08,131.18,131.17,9.095739]
[1767379042586,1e-08,131.18,131.17,9.81470462]
[1767379042786,0.68906007,131.23,131.18,0.71896562]
[1767379042986,0.68906007,131.23,131.19,9.81470462]
[1767379043391,0.88906007,131.24,131.2,8.34037099]
[1767379043925,0.68906007,131.23,131.2,7.62140537]
[1767379044201,9.295739,131.24,131.21,9.095739]
[1767379044202,0.2,131.24,131.21,9.095739]
[1767379044399,0.68906007,131.23,131.2,7.62140537]
[1767379045597,0.68906007,131.23,131.19,7.6225322]
[1767379045901,0.88906007,131.24,131.2,9.81470462]
[1767379046303,9.78479907,131.23,131.19,26.67886271]
[1767379046601,0.68906007,131.21,131.18,7.62289415]
[1767379046780,9.78479907,131.21,131.18,7.62289415]
[1767379047787,0.68032734,131.2,131.18,7.62289415]
[1767379048186,7.81987009,131.24,131.18,27.38838168]
[1767379048187,9.77606634,131.22,131.18,27.38838168]
[1767379050011,0.70063749,131.21,131.18,7.62289415]
[1767379051908,0.70063749,131.21,131.17,22.22947663]
[1767379052114,9.79637649,131.2,131.17,7.62324468]
[1767379052488,0.70063749,131.22,131.18,0.68623195]
[1767379052804,9.79637649,131.22,131.18,0.68623195]
[1767379053812,0.70063749,131.21,131.18,0.68623195]
[1767379054410,9.79637649,131.21,131.17,19.74546805]
[1767379055096,9.79637649,131.21,131.18,7.62290989]
[1767379057007,0.70063749,131.21,131.18,7.62290989]
[1767379057212,9.79637649,131.21,131.18,7.62290989]
[1767379057410,9.79637649,131.2,131.17,7.62343424]
[1767379058714,0.70063749,131.2,131.17,7.62343424]
[1767379058968,9.79637649,131.2,131.17,8.30966619]
[1767379059513,0.70063749,131.2,131.17,27.36890229]
[1767379059713,9.095739,131.21,131.17,27.36890229]
[1767379060212,0.70063749,131.22,131.17,27.36890229]
[1767379060413,9.095739,131.21,131.17,27.36890229]
[1767379060615,9.79637649,131.22,131.17,27.36890229]
[1767379061409,9.79637649,131.21,131.17,27.36890229]
[1767379064529,0.70063749,131.21,131.17,27.36890229]
[1767379064731,9.79637649,131.21,131.17,27.36890229]
[1767379065929,0.70063749,131.21,131.17,27.36890229]
[1767379066229,9.79637649,131.21,131.17,27.36890229]
[1767379068734,0.70063749,131.2,131.17,27.36890229]
[1767379069733,4.50994692,131.21,131.17,27.36890229]
[1767379069933,5.09123582,131.2,131.17,27.36890229]
[1767379070433,4.50994692,131.21,131.17,27.36890229]
[1767379070626,5.09582937,131.2,131.17,27.36890229]
[1767379070825,8.9051388,131.2,131.17,27.36890229]
[1767379071023,3.80930943,131.2,131.17,27.36890229]
[1767379072534,4.50994692,131.21,131.17,27.36890229]
[1767379072735,5.10227111,131.2,131.17,27.36890229]
[1767379072938,4.50994692,131.21,131.17,27.36890229]
[1767379073133,4.50994692,131.23,131.2,0.68623195]
[1767379073339,0.70063749,131.2,131.17,27.36890229]
[1767379073514,4.50994692,131.2,131.17,27.36890229]
[1767379073838,0.70063749,131.22,131.18,0.68623195]
[1767379074039,4.50994692,131.22,131.18,0.68623195]
[1767379074337,0.70063749,131.22,131.18,0.68623195]
[1767379074716,4.50994692,131.22,131.18,0.68623195]
[1767379075241,4.50994692,131.22,131.19,7.6225322]
[1767379076725,0.70063749,131.22,131.19,7.6225322]
[1767379078736,0.2,131.25,131.22,0.68623195]
[1767379078947,1e-08,131.25,131.24,0.68623195]
[1767379080330,1e-08,131.25,131.24,8.30586011]
[1767379080840,1e-08,131.27,131.25,0.72475874]
[1767379081945,1e-08,131.27,131.26,0.72475874]
[1767379082441,1e-08,131.27,131.26,8.3432259]
[1767379083520,0.6668599,131.32,131.27,0.72475874]
[1767379083723,18.30778203,131.33,131.29,0.72475874]
[1767379084414,17.64092213,131.33,131.3,0.72475874]
[1767379084637,17.64092213,131.33,131.3,0.69570178]
[1767379085347,1e-08,131.33,131.31,7.61556621]
[1767379085520,0.66685991,131.33,131.3,7.61589692]
[1767379086540,4.47616934,131.33,131.3,7.61589692]
[1767379086918,4.47616933,131.32,131.29,8.34123004]
[1767379087122,4.47616933,131.32,131.29,7.6164713]
[1767379088333,4.47616933,131.31,131.28,8.34180847]
[1767379088532,0.6668599,131.31,131.28,8.34180847]
[1767379090050,1e-08,131.33,131.3,0.72475874]
[1767379090216,1e-08,131.33,131.32,3.80930943]
[1767379090417,0.2,131.35,131.32,3.80930943]
[1767379090832,0.2,131.35,131.32,4.53406817]
[1767379091147,0.2,131.35,131.3,13.9]
[1767379091148,0.2,131.35,131.33,0.72475874]
[1767379092040,0.2,131.35,131.33,8.33868162]
[1767379092419,1e-08,131.35,131.33,8.33868162]
[1767379093025,1e-08,131.35,131.33,7.61392288]
[1767379093247,0.66685991,131.35,131.32,7.61477828]
[1767379093743,4.47616934,131.35,131.31,8.34013167]
[1767379094045,0.66685991,131.35,131.32,7.61492654]
[1767379096626,0.66685991,131.35,131.32,0.72475874]
[1767379097555,1e-08,131.35,131.33,0.72475874]
[1767379098630,1e-08,131.35,131.33,8.3388487]
[1767379098850,2.63178507,131.37,131.35,0.72475874]
[1767379098851,1e-08,131.37,131.35,0.72475874]
[1767379100034,0.66685991,131.37,131.33,41.27486484]
[1767379100538,1e-08,131.37,131.34,0.72475874]
[1767379101251,1e-08,131.37,131.34,3.15654381]
[1767379101750,1e-08,131.37,131.34,0.72475874]
[1767379102622,1e-08,131.37,131.36,2.43178507]
[1767379102839,1e-08,131.37,131.36,13.9]
[1767379103244,1e-08,131.37,131.36,14.62475874]
[1767379103846,1e-08,131.37,131.36,13.9]
[1767379104146,1e-08,131.37,131.36,16.33178507]
[1767379104555,1e-08,131.37,131.36,13.9]
[1767379104769,1e-08,131.37,131.36,21.51266747]
[1767379105228,0.2,131.41,131.36,42.97612123]
[1767379105429,0.2,131.41,131.37,0.72475874]
[1767379105747,0.2,131.41,131.38,0.72475874]
[1767379106355,0.2,131.41,131.36,21.51266747]
[1767379106356,0.6668599,131.39,131.36,21.51266747]
[1767379106533,0.6668599,131.39,131.36,22.23742621]
[1767379107346,0.71852003,131.4,131.36,41.2690949]
[1767379107656,3.1503051,131.4,131.37,0.65419036]
[1767379107852,0.2,131.41,131.37,0.65419036]
[1767379108967,0.2,131.41,131.38,8.26569896]
[1767379109158,0.2,131.41,131.39,0.65419036]
[1767379109542,1e-08,131.41,131.39,0.65419036]
[1767379109736,1e-08,131.42,131.41,0.6876295]
[1767379110857,1e-08,131.42,131.4,0.6876295]
[1767379111066,1e-08,131.42,131.4,7.61026087]
[1767379111067,3.10729707,131.42,131.4,7.61026087]
[1767379111247,1e-08,131.42,131.4,7.61026087]
[1767379112251,1e-08,131.42,131.4,8.29789037]
[1767379112557,1e-08,131.42,131.41,7.60977094]
[1767379112763,0.87551199,131.45,131.41,7.60977094]
[1767379113070,0.87551199,131.45,131.41,27.3218278]
[1767379113377,3.30729706,131.45,131.41,27.3218278]
[1767379113949,3.30729706,131.45,131.42,0.6876295]
[1767379114154,0.87551199,131.45,131.42,0.6876295]
[1767379114340,3.30729706,131.45,131.42,0.6876295]
[1767379114753,0.67551199,131.44,131.41,26.6341983]
[1767379115048,0.67551199,131.44,131.41,19.71205686]
[1767379115253,2.63178507,131.45,131.41,19.71205686]
[1767379115564,1e-08,131.45,131.41,19.71205686]
[1767379116260,2.43178508,131.45,131.41,0.6876295]
[1767379116858,2.43178508,131.45,131.41,8.29685946]
[1767379117054,2.43178508,131.45,131.4,7.61017242]
[1767379117055,2.43178507,131.43,131.4,7.61017242]
[1767379117361,3.10729706,131.42,131.4,7.61017242]
[1767379117536,0.67551199,131.42,131.4,7.61017242]
[1767379117943,3.10729706,131.43,131.4,7.61017242]
[1767379119155,0.67551199,131.43,131.4,7.61017242]
[1767379119361,0.67551199,131.43,131.4,8.29780192]
[1767379120266,0.67551199,131.44,131.4,27.32367711]
[1767379120471,3.10729706,131.44,131.4,27.32367711]
[1767379121666,2.43178507,131.41,131.4,7.61017242]
[1767379121874,0.22950242,131.41,131.37,0.6876295]
[1767379122064,2.66128749,131.41,131.38,7.61112139]
[1767379122249,2.43178507,131.4,131.38,7.61112139]
[1767379123645,0.22950242,131.41,131.38,7.61112139]
[1767379123846,2.66128749,131.41,131.38,7.61112139]
[1767379124352,5.08404304,131.4,131.38,7.61112139]
[1767379125752,2.66128749,131.41,131.38,7.61112139]
[1767379129152,2.43178507,131.4,131.37,8.29949856]
[1767379132978,0.22950242,131.41,131.37,8.29949856]
[1767379133164,2.43178507,131.4,131.37,8.29949856]
[1767379134357,0.22950242,131.41,131.37,8.29949856]
[1767379134554,0.23387332,131.39,131.36,7.61239096]
[1767379134769,3.09405012,131.38,131.36,7.61234088]
[1767379135870,3.10729706,131.4,131.36,8.29997038]
[1767379136073,2.43178507,131.41,131.37,0.6876295]
[1767379136275,2.43178507,131.41,131.36,26.64400957]
[1767379136276,3.10279236,131.42,131.38,0.6876295]
[1767379137058,0.67100729,131.42,131.39,7.61092929]
[1767379137280,3.10279236,131.42,131.39,8.29855879]
[1767379140886,3.15619746,131.43,131.39,8.29855879]
[1767379141085,0.72441239,131.43,131.4,0.70710533]
[1767379141385,3.15619746,131.43,131.4,0.70710533]
[1767379141761,0.71893458,131.41,131.39,7.61092929]
[1767379141968,3.15619746,131.42,131.39,7.61092929]
[1767379142187,3.15619746,131.42,131.39,8.31803462]
[1767379142566,0.72441239,131.42,131.39,8.31803462]
[1767379142768,3.15619746,131.42,131.39,8.31803462]
[1767379143067,0.7244124,131.45,131.4,0.70710533]
[1767379143273,2.60841644,131.44,131.4,0.70710533]
[1767379143472,2.43178507,131.43,131.4,0.70710533]
[1767379143883,3.15071965,131.43,131.4,0.70710533]
[1767379144082,2.43178507,131.44,131.4,0.70710533]
[1767379144479,3.15071965,131.43,131.4,0.70710533]
[1767379144786,3.15071965,131.43,131.4,8.31732851]
[1767379148108,0.71356578,131.41,131.39,7.61092929]
[1767379148277,3.14535085,131.41,131.39,7.61092929]
[1767379148482,0.71356578,131.41,131.39,7.61092929]
[1767379151801,0.71356578,131.41,131.38,8.31832046]
[1767379155999,3.14535085,131.41,131.38,8.31832046]
[1767379156192,2.43178507,131.4,131.38,8.31832046]
[1767379156519,3.14535085,131.41,131.38,8.31832046]
[1767379158092,5.12395699,131.4,131.38,8.31832046]
[1767379158718,0.7244124,131.45,131.39,0.70710533]
[1767379158884,0.72441239,131.43,131.4,0.70710533]
[1767379159200,3.15619746,131.43,131.4,0.70710533]
[1767379159401,2.43178507,131.41,131.39,14.60710533]
[1767379159802,0.72441239,131.42,131.39,14.60710533]
[1767379159977,2.43178507,131.41,131.4,0.70710533]
[1767379160391,2.43178507,131.42,131.4,0.70710533]
[1767379160586,0.72441239,131.42,131.39,8.31755226]
[1767379160900,3.79737763,131.41,131.39,8.31755226]
[1767379161098,3.79737763,131.41,131.4,7.61035007]
[1767379162903,3.76737763,131.41,131.4,7.61035007]
[1767379165302,0.72441239,131.42,131.4,7.61035007]
[1767379165495,3.79737763,131.41,131.4,7.61035007]
[1767379165801,4.52179002,131.42,131.4,7.61035007]
[1767379166703,4.52179002,131.41,131.39,7.61081802]
[1767379167086,0.71645756,131.39,131.35,0.67489601]
[1767379167280,3.79737763,131.38,131.35,0.67489601]
[1767379167481,3.79737763,131.39,131.36,8.28717633]
[1767379168604,4.51383519,131.39,131.36,8.28717633]
[1767379169680,3.79737763,131.38,131.36,8.28717633]
[1767379170493,4.48873069,131.38,131.35,0.71235216]
[1767379170702,3.79737763,131.37,131.35,0.71235216]
[1767379172383,0.69135306,131.38,131.35,8.3252929]
[1767379172584,3.79737763,131.37,131.35,8.3252929]
[1767379173597,3.79737763,131.36,131.34,8.32599012]
[1767379174300,0.69135306,131.37,131.34,8.32599012]
[1767379174504,3.79737763,131.36,131.34,8.32599012]
[1767379176501,0.69135306,131.37,131.34,8.32599012]
[1767379176693,4.48873069,131.37,131.34,8.32599012]
[1767379177093,3.79737763,131.36,131.34,8.32599012]
[1767379177801,0.69135306,131.34,131.21,84.25407479]
[1767379178004,0.69135306,131.32,131.28,8.32948374]
[1767379178203,4.48873069,131.31,131.28,8.32948374]
[1767379178398,3.79737763,131.3,131.28,0.71235216]
[1767379178903,3.79737763,131.31,131.28,8.32964158]
[1767379179286,0.69135306,131.32,131.28,8.32964158]
[1767379179287,3.79737763,131.3,131.28,0.71235216]
[1767379179505,3.79737763,131.31,131.28,0.71235216]
[1767379179811,3.79737763,131.31,131.28,8.32949841]
[1767379181104,0.69135306,131.32,131.29,0.71235216]
[1767379181417,4.48873069,131.32,131.29,8.32907378]
[1767379182314,0.69135306,131.32,131.29,8.32907378]
[1767379182792,12.10218871,131.35,131.31,0.71235216]
[1767379183393,0.69135306,131.34,131.31,0.71235216]
[1767379187219,4.48873069,131.35,131.31,8.32789202]
[1767379187400,0.69135306,131.36,131.32,0.71235216]
[1767379187717,4.48873069,131.35,131.32,0.71235216]
[1767379188013,0.69135306,131.33,131.3,14.61235216]
[1767379188317,4.48873069,131.33,131.3,22.22812831]
[1767379188518,4.48873069,131.34,131.3,22.22812831]
[1767379189116,3.79737763,131.34,131.31,8.32789665]
[1767379189307,4.48873069,131.35,131.31,8.32789665]
[1767379189617,0.69135306,131.34,131.31,8.32789665]
[1767379190199,0.69135306,131.34,131.31,12.12527428]
[1767379191607,0.69135306,131.34,131.31,4.50972979]
[1767379193197,0.69135306,131.34,131.32,3.79737763]
[1767379194526,0.69135306,131.34,131.31,0.71235216]
[1767379194726,0.69135306,131.34,131.31,4.50972979]
[1767379195423,0.69135306,131.32,131.29,7.61657626]
[1767379195613,0.69135306,131.32,131.28,12.12674726]
[1767379195814,0.69135306,131.31,131.28,12.12674726]
[1767379196323,0.69135306,131.31,131.28,8.32936963]
[1767379196505,4.48873069,131.31,131.28,8.32936963]
[1767379198029,0.69135306,131.31,131.28,8.32936963]
[1767379198321,0.69135306,131.31,131.28,0.71235216]
[1767379199215,4.48873069,131.31,131.28,0.71235216]
[1767379199827,0.67647269,131.32,131.29,0.69760629]
[1767379200215,0.67647269,131.31,131.28,12.11217899]
[1767379200619,0.67647269,131.32,131.29,0.69760629]
[1767379200820,0.67647269,131.32,131.29,4.49498392]
[1767379203013,0.67647269,131.34,131.31,0.69760629]
[1767379203414,25.98747689,131.35,131.31,4.49498392]
[1767379203732,0.67647269,131.36,131.33,0.69760629]
[1767379203921,12.08661179,131.36,131.33,0.69760629]
[1767379204536,8.28923416,131.36,131.33,0.69760629]
[1767379204934,12.08661179,131.36,131.32,4.49498392]
[1767379205428,0.67647269,131.35,131.31,0.69760629]
[1767379205732,0.67647269,131.33,131.3,0.69760629]
[1767379206644,0.67647269,131.3,131.27,22.21520449]
[1767379206945,0.67647269,131.3,131.27,8.31520449]
[1767379207316,0.67647269,131.3,131.27,0.69760629]
[1767379207547,8.29266323,131.3,131.27,0.69760629]
[1767379207719,0.67647269,131.3,131.27,0.69760629]
[1767379208113,0.67647269,131.3,131.26,8.4159801]
[1767379208114,12.09005866,131.3,131.26,8.4159801]
[1767379208332,0.67647269,131.29,131.26,8.4159801]
[1767379209337,0.67647269,131.29,131.26,0.79760629]
[1767379209639,4.47385032,131.28,131.26,0.1]
[1767379210742,0.67647269,131.28,131.26,0.1]
[1767379210924,4.47385032,131.28,131.26,0.1]
[1767379211632,3.79737763,131.27,131.26,0.1]
[1767379211834,15.25314567,131.27,131.23,0.79760629]
[1767379212018,5.10695438,131.26,131.23,0.79760629]
[1767379212214,4.47385032,131.27,131.24,0.69760629]
[1767379213648,4.47385032,131.27,131.24,8.31712505]
[1767379213849,0.67647269,131.27,131.24,8.31712505]
[1767379215727,3.79737763,131.3,131.25,0.69760629]
[1767379215953,12.09005162,131.3,131.25,0.69760629]
[1767379216121,10.77482424,131.29,131.25,3.79737763]
[1767379216327,0.67647269,131.27,131.25,3.79737763]
[1767379216532,5.67206573,131.28,131.25,4.49498392]
[1767379216533,0.67647269,131.28,131.25,4.49498392]
[1767379216741,0.67647269,131.3,131.27,4.49498392]
[1767379217439,0.67647269,131.3,131.28,7.61730652]
[1767379217629,4.47385032,131.32,131.28,8.31491281]
[1767379217829,11.45564868,131.31,131.28,0.69760629]
[1767379218136,0.67647269,131.28,131.25,8.31644197]
[1767379218331,5.67546909,131.27,131.25,8.31644197]
[1767379218642,3.79737763,131.27,131.24,8.31701536]
[1767379220725,0.67647269,131.29,131.25,0.69760629]
[1767379220936,5.67784829,131.28,131.25,0.69760629]
[1767379221122,0.67647269,131.28,131.25,0.69760629]
[1767379221324,4.47385032,131.28,131.25,0.69760629]
[1767379221924,4.47385032,131.28,131.25,8.31640868]
[1767379222124,0.67647269,131.27,131.24,8.31694812]
[1767379222328,0.67647269,131.28,131.24,8.31694812]
[1767379222534,3.11172583,131.28,131.24,8.31694812]
[1767379223549,8.11589817,131.27,131.24,8.31694812]
[1767379223754,5.68064503,131.26,131.24,8.31694812]
[1767379224250,3.11172583,131.26,131.23,8.41754273]
[1767379225040,0.67647269,131.26,131.23,8.41754273]
[1767379225555,0.67647269,131.27,131.23,8.41754273]